bitfinex/quotes_BTCUSD_20240908
["timestamp","ask_amount","ask_price","bid_price","bid_amount"]
[1725815152050,0.00081,54118.0,54117.0,1.27243472]
[1725815153021,0.00081,54118.0,54117.0,0.69512472]
[1725815153261,0.16859872,54118.0,54117.0,0.32816972]
[1725815153493,0.16859872,54118.0,54117.0,0.62382472]
[1725815153718,0.00081,54118.0,54117.0,0.62382472]
[1725815153959,0.00081,54118.0,54117.0,0.61382472]
[1725815154197,0.00081,54118.0,54117.0,0.53524323]
[1725815154468,0.00081,54118.0,54117.0,0.52224323]
[1725815154932,0.00081,54118.0,54117.0,0.52024323]
[1725815155192,0.00081,54118.0,54117.0,0.81589823]
[1725815155664,0.00081,54118.0,54117.0,0.52024323]
[1725815155893,0.00081,54118.0,54117.0,0.53424323]
[1725815156144,0.00081,54118.0,54117.0,0.83989823]
[1725815156370,0.00081,54118.0,54117.0,0.84189823]
[1725815157329,0.00031,54118.0,54117.0,0.90209823]
[1725815159965,0.00031,54118.0,54117.0,1.19775323]
[1725815162226,0.00031,54118.0,54117.0,1.18775323]
[1725815162459,0.00031,54118.0,54117.0,1.17375323]
[1725815162636,0.00031,54118.0,54117.0,1.18375323]
[1725815162862,0.00031,54118.0,54117.0,1.19775323]
[1725815163078,0.00031,54118.0,54117.0,1.18775323]
[1725815163324,0.00031,54118.0,54117.0,0.90209823]
[1725815163552,0.00031,54118.0,54117.0,0.88809823]
[1725815163778,0.00031,54118.0,54117.0,1.18775323]
[1725815164183,0.00031,54118.0,54117.0,1.19775323]
[1725815165465,0.00031,54118.0,54117.0,1.18775323]
[1725815165680,0.00031,54118.0,54117.0,1.17375323]
[1725815165899,0.00031,54118.0,54117.0,1.19775323]
[1725815169562,0.00031,54118.0,54117.0,1.19938123]
[1725815171136,0.00031,54118.0,54117.0,0.90172623]
[1725815171775,0.00031,54118.0,54117.0,0.90372623]
[1725815172705,0.16809872,54118.0,54117.0,0.025628]
[1725815172908,0.16778872,54118.0,54117.0,0.025628]
[1725815173350,0.16778872,54118.0,54117.0,0.015628]
[1725815173811,1.28072206,54118.0,54117.0,0.020628]
[1725815174048,1.22556372,54118.0,54117.0,0.020628]
[1725815174290,1.30830124,54118.0,54117.0,0.001628]
[1725815174473,1.41694001,54118.0,54117.0,0.001628]
[1725815174676,1.4710679,54118.0,54117.0,0.001628]
[1725815175143,1.36075121,54118.0,54117.0,0.001628]
[1725815175576,1.49864708,54118.0,54117.0,0.016628]
[1725815175809,1.36075121,54118.0,54117.0,0.006628]
[1725815176017,1.36075121,54118.0,54117.0,0.001628]
[1725815176236,1.36275121,54118.0,54117.0,0.002628]
[1725815176455,1.36475121,54118.0,54117.0,0.002628]
[1725815177135,1.50264708,54118.0,54117.0,0.002628]
[1725815177343,1.50264708,54118.0,54117.0,0.003628]
[1725815177344,1.36675121,54118.0,54117.0,0.003628]
[1725815177554,1.36275121,54118.0,54117.0,0.002628]
[1725815178217,1.39007373,54118.0,54117.0,0.002628]
[1725815179130,1.39007373,54118.0,54117.0,0.003628]
[1725815179131,1.39107373,54118.0,54117.0,0.003628]
[1725815179348,1.50177765,54118.0,54117.0,0.003628]
[1725815181326,1.02970016,54118.0,54117.0,0.003628]
[1725815181546,1.03291372,54118.0,54117.0,0.003628]
[1725815182444,1.08824409,54118.0,54117.0,0.003628]
[1725815182645,1.03291372,54118.0,54117.0,0.003628]
[1725815182851,1.17281788,54118.0,54117.0,0.003628]
[1725815183525,1.11590539,54118.0,54117.0,0.003628]
[1725815183966,1.17325649,54118.0,54117.0,0.003628]
[1725815184181,1.05783771,54118.0,54117.0,0.003628]
[1725815184420,1.00251018,54118.0,54117.0,0.003628]
[1725815184641,0.70486018,54118.0,54117.0,0.002628]
[1725815184864,0.76218771,54118.0,54117.0,0.003628]
[1725815185097,0.70686018,54118.0,54117.0,0.003628]
[1725815185330,0.70386018,54118.0,54117.0,0.001628]
[1725815185548,0.70486018,54118.0,54117.0,0.002628]
[1725815185809,0.70686018,54118.0,54117.0,0.003628]
[1725815186031,0.70586018,54118.0,54117.0,0.002628]
[1725815186273,0.72786018,54118.0,54117.0,0.002628]
[1725815186492,0.72786018,54118.0,54117.0,0.003628]
[1725815186493,1.08083771,54118.0,54117.0,0.003628]
[1725815186745,1.02551018,54118.0,54117.0,0.003628]
[1725815187853,0.56207146,54118.0,54117.0,0.003628]
[1725815188070,0.72986018,54118.0,54117.0,0.003628]
[1725815188303,1.07783218,54118.0,54117.0,0.001628]
[1725815188540,0.97783218,54118.0,54117.0,0.001628]
[1725815188770,0.68318218,54118.0,54117.0,0.001628]
[1725815189200,0.62986018,54118.0,54117.0,0.002628]
[1725815189859,0.62786018,54118.0,54117.0,0.001628]
[1725815190093,0.62886018,54118.0,54117.0,0.002628]
[1725815190322,0.62986018,54118.0,54117.0,0.002628]
[1725815190785,0.92551018,54118.0,54117.0,0.002628]
[1725815191456,0.92351018,54118.0,54117.0,0.001628]
[1725815191667,0.92251018,54118.0,54117.0,0.001628]
[1725815191879,0.92551018,54118.0,54117.0,0.002628]
[1725815192300,0.92251018,54118.0,54117.0,0.001628]
[1725815192527,0.92551018,54118.0,54117.0,0.002628]
[1725815193638,0.63000875,54118.0,54117.0,0.002628]
[1725815193883,0.77783375,54118.0,54117.0,0.002628]
[1725815202585,1.12880729,54118.0,54117.0,0.002628]
[1725815203051,1.09648375,54118.0,54117.0,0.002628]
[1725815203536,1.23697764,54118.0,54117.0,0.002628]
[1725815204524,1.24561641,54118.0,54117.0,0.002628]
[1725815206420,1.27537017,54118.0,54117.0,0.002628]
[1725815207649,1.16472308,54118.0,54117.0,0.002628]
[1725815210337,1.30303194,54118.0,54117.0,0.002628]
[1725815211489,1.16472308,54118.0,54117.0,0.002628]
[1725815212193,1.27546565,54118.0,54117.0,0.002628]
[1725815212425,1.30315912,54118.0,54117.0,0.002628]
[1725815212652,1.16472308,54118.0,54117.0,0.002628]
[1725815213092,1.30318423,54118.0,54117.0,0.002628]
[1725815213323,1.16472308,54118.0,54117.0,0.002628]
[1725815214679,1.30056289,54118.0,54117.0,0.002628]
[1725815215376,1.16472308,54118.0,54117.0,0.002628]
[1725815216074,1.56037308,54118.0,54117.0,0.002628]
[1725815216289,1.61414608,54118.0,54117.0,0.002628]
[1725815216501,1.71466629,54118.0,54117.0,0.002628]
[1725815217275,1.73466629,54118.0,54117.0,0.002628]
[1725815217978,1.62886989,54118.0,54117.0,0.002628]
[1725815218193,1.7071382,54118.0,54117.0,0.002628]
[1725815218418,1.67819844,54118.0,54117.0,0.002628]
[1725815218642,1.70714007,54118.0,54117.0,0.002628]
[1725815219863,1.67819844,54118.0,54117.0,0.002628]
[1725815221166,1.70714003,54118.0,54117.0,0.002628]
[1725815221614,1.67819844,54118.0,54117.0,0.002628]
[1725815221840,1.70714046,54118.0,54117.0,0.002628]
[1725815222068,0.91945163,54118.0,54117.0,0.084828]
[1725815222323,0.73960967,54118.0,54117.0,0.084828]
[1725815222560,0.73960967,54118.0,54117.0,0.148528]
[1725815222793,0.45902041,54118.0,54117.0,0.148528]
[1725815223272,0.75467041,54118.0,54117.0,0.148528]
[1725815223509,0.34803879,54118.0,54117.0,0.148528]
[1725815223733,0.17156406,54118.0,54117.0,0.148528]
[1725815224182,0.003814,54118.0,54117.0,0.29771623]
[1725815224468,0.003814,54118.0,54117.0,0.88902623]
[1725815225624,0.001814,54118.0,54117.0,0.88802623]
[1725815225844,0.000814,54118.0,54117.0,0.59237123]
[1725815226064,0.001814,54118.0,54117.0,0.59337123]
[1725815226286,0.001814,54118.0,54117.0,0.88902623]
[1725815226519,0.002814,54118.0,54117.0,0.88902623]
[1725815226745,0.003814,54118.0,54117.0,0.88902623]
[1725815227698,0.001814,54118.0,54117.0,0.88802623]
[1725815228178,0.003814,54118.0,54117.0,0.88902623]
[1725815228645,0.001814,54118.0,54117.0,0.88802623]
[1725815228865,0.002814,54118.0,54117.0,0.88802623]
[1725815229312,0.003814,54118.0,54117.0,0.88802623]
[1725815229570,0.001814,54118.0,54117.0,0.88802623]
[1725815229793,0.002814,54118.0,54117.0,0.89002623]
[1725815230018,0.004814,54118.0,54117.0,0.89002623]
[1725815230463,0.002814,54118.0,54117.0,0.89002623]
[1725815231138,0.000814,54118.0,54117.0,0.89802623]
[1725815231580,0.000814,54118.0,54117.0,0.90202623]
[1725815232031,0.000814,54118.0,54117.0,0.89602623]
[1725815232279,0.000814,54118.0,54117.0,0.89202623]
[1725815232722,0.000814,54118.0,54117.0,0.89402623]
[1725815232934,0.000814,54118.0,54117.0,0.88802623]
[1725815233150,0.000814,54118.0,54117.0,0.89302623]
[1725815233377,0.000814,54118.0,54117.0,0.90102623]
[1725815233811,0.000814,54118.0,54117.0,0.61137123]
[1725815234028,0.000814,54118.0,54117.0,0.90702623]
[1725815234241,0.000814,54118.0,54117.0,0.89302623]
[1725815234459,0.000814,54118.0,54117.0,0.88802623]
[1725815234708,0.000814,54118.0,54117.0,0.59237123]
[1725815234928,0.000814,54118.0,54117.0,0.59437123]
[1725815235374,0.000814,54118.0,54117.0,0.88802623]
[1725815235596,0.000814,54118.0,54117.0,0.89702623]
[1725815235811,0.000814,54118.0,54117.0,0.88902623]
[1725815236046,0.000814,54118.0,54117.0,0.98783258]
[1725815236489,0.000814,54118.0,54117.0,0.98283258]
[1725815236719,0.000814,54118.0,54117.0,0.69517758]
[1725815236971,0.000814,54118.0,54117.0,0.68717758]
[1725815237210,0.000814,54118.0,54117.0,0.68917758]
[1725815237426,0.000814,54118.0,54117.0,0.69317758]
[1725815237839,0.000814,54118.0,54117.0,0.89902623]
[1725815238055,0.000814,54118.0,54117.0,0.60337123]
[1725815238273,0.000814,54118.0,54117.0,0.89402623]
[1725815238523,0.000814,54118.0,54117.0,0.89002623]
[1725815238738,0.000814,54118.0,54117.0,0.89102623]
[1725815238957,0.000814,54118.0,54117.0,0.89902623]
[1725815239173,0.000814,54118.0,54117.0,0.89102623]
[1725815239398,0.000814,54118.0,54117.0,0.89502623]
[1725815239614,0.000814,54118.0,54117.0,0.89102623]
[1725815240122,0.000814,54118.0,54117.0,0.89902623]
[1725815240340,0.000814,54118.0,54117.0,0.89102623]
[1725815240780,0.000814,54118.0,54117.0,0.88802623]
[1725815240999,0.085996,54123.0,54122.0,0.1464]
[1725815242103,0.086996,54123.0,54122.0,0.294214]
[1725815242344,0.001,54123.0,54122.0,0.296214]
[1725815242586,0.00094,54125.0,54122.0,0.294214]
[1725815242802,0.00094,54125.0,54123.0,0.1464]
[1725815243019,0.00094,54125.0,54124.0,0.0636]
[1725815244180,0.00094,54125.0,54124.0,0.1464]
[1725815244885,0.00294,54125.0,54124.0,0.1464]
[1725815245373,0.00094,54125.0,54124.0,0.1464]
[1725815245598,0.00194,54125.0,54124.0,0.1464]
[1725815245826,0.00394,54125.0,54124.0,0.1464]
[1725815249890,0.151746,54125.0,54124.0,0.1464]
[1725815250136,0.151746,54125.0,54124.0,0.0828]
[1725815253189,0.00394,54125.0,54124.0,0.0828]
[1725815258063,0.093341,54125.0,54124.0,0.0828]
[1725815258988,0.00394,54125.0,54124.0,0.1494]
[1725815259251,0.00394,54125.0,54124.0,0.98748387]
[1725815259907,0.00394,54125.0,54124.0,1.28510087]
[1725815260154,0.00394,54125.0,54124.0,0.98948387]
[1725815260409,0.00194,54125.0,54124.0,0.98948387]
[1725815260634,0.00394,54125.0,54124.0,0.98948387]
[1725815260884,0.00294,54125.0,54124.0,0.98948387]
[1725815261121,0.00094,54125.0,54124.0,0.99848387]
[1725815261322,0.00094,54125.0,54124.0,0.98948387]
[1725815261534,0.00094,54125.0,54124.0,0.99948387]
[1725815261762,0.00094,54125.0,54124.0,1.01248387]
[1725815261983,0.00094,54125.0,54124.0,1.00248387]
[1725815262208,0.00094,54125.0,54124.0,1.30710087]
[1725815262413,0.00094,54125.0,54124.0,1.29410087]
[1725815262846,0.00094,54125.0,54124.0,1.30810087]
[1725815263584,0.00094,54125.0,54124.0,1.29910087]
[1725815263801,0.00094,54125.0,54124.0,1.30910087]
[1725815264035,0.00094,54125.0,54124.0,1.29510087]
[1725815264273,0.00094,54125.0,54124.0,1.28510087]
[1725815264508,0.00094,54125.0,54124.0,1.31010087]
[1725815264734,0.00094,54125.0,54124.0,1.59271787]
[1725815264957,0.00094,54125.0,54124.0,1.31110087]
[1725815265291,0.0105058,54132.0,54131.0,1.58548723]
[1725815265522,0.0105058,54132.0,54131.0,1.68451292]
[1725815265751,0.0105058,54132.0,54131.0,1.98009192]
[1725815266890,0.0105058,54132.0,54131.0,1.98409192]
[1725815267563,0.0105058,54132.0,54131.0,1.99109192]
[1725815268230,0.0104658,54132.0,54131.0,1.99109192]
[1725815269147,0.0104658,54132.0,54131.0,1.64551292]
[1725815271529,0.0104658,54132.0,54131.0,0.99793392]
[1725815271760,0.0104658,54132.0,54131.0,1.29551292]
[1725815273075,0.0104658,54132.0,54131.0,1.29151292]
[1725815273298,0.0104658,54132.0,54131.0,1.28451292]
[1725815273534,0.0104658,54132.0,54131.0,1.29251292]
[1725815273999,0.0104658,54132.0,54131.0,1.28451292]
[1725815274247,0.0104658,54132.0,54131.0,1.29251292]
[1725815276837,0.0112798,54132.0,54131.0,1.29251292]
[1725815277081,0.23812079,54151.0,54140.0,0.295527]
[1725815277321,0.089401,54147.0,54144.0,0.147753]
[1725815277540,0.089401,54147.0,54143.0,0.148]
[1725815277775,0.089401,54147.0,54146.0,0.147748]
[1725815277990,0.089401,54151.0,54144.0,0.29686823]
[1725815278215,0.147737,54150.0,54146.0,0.147747]
[1725815279082,0.147737,54150.0,54144.0,0.29686823]
[1725815279083,0.089401,54148.0,54144.0,0.29686823]
[1725815279296,0.002,54151.0,54150.0,0.59457323]
[1725815279529,0.00081,54153.0,54152.0,0.593196]
[1725815279749,0.00081,54153.0,54152.0,1.28311148]
[1725815279970,0.00081,54153.0,54152.0,1.28447271]
[1725815280661,0.00081,54153.0,54152.0,1.29647271]
[1725815281135,0.00081,54153.0,54152.0,0.59955723]
[1725815281356,0.00081,54153.0,54152.0,0.598196]
[1725815281595,0.00081,54153.0,54152.0,0.301732]
[1725815281819,0.00081,54153.0,54152.0,0.60755723]
[1725815282470,0.00081,54153.0,54152.0,0.90302123]
[1725815283119,0.00081,54153.0,54152.0,0.89402123]
[1725815283331,0.00081,54153.0,54152.0,0.89502123]
[1725815283763,0.00281,54153.0,54152.0,0.88802123]
[1725815284002,0.00281,54153.0,54152.0,0.89302123]
[1725815284215,0.00081,54153.0,54152.0,0.88802123]
[1725815284446,0.00081,54153.0,54152.0,0.89102123]
[1725815284666,0.00081,54153.0,54152.0,0.89602123]
[1725815284898,0.00081,54153.0,54152.0,1.18648523]
[1725815285107,0.00081,54153.0,54152.0,1.18848523]
[1725815285854,0.00081,54153.0,54152.0,1.18548523]
[1725815286307,0.00081,54153.0,54152.0,1.19348523]
[1725815286531,0.00081,54153.0,54152.0,1.19048523]
[1725815286967,0.00081,54153.0,54152.0,1.19848523]
[1725815291718,0.00081,54153.0,54152.0,0.90102123]
[1725815292157,0.00081,54153.0,54152.0,0.90302123]
[1725815292795,0.00081,54153.0,54152.0,0.90102123]
[1725815293031,0.00081,54153.0,54152.0,0.99843076]
[1725815294833,0.00081,54153.0,54152.0,0.90102123]
[1725815296183,0.00081,54153.0,54152.0,0.99412892]
[1725815298073,0.00081,54153.0,54152.0,0.90102123]
[1725815305807,0.00081,54153.0,54152.0,0.60555723]
[1725815306312,0.00081,54153.0,54152.0,0.161]
[1725815306569,0.444898,54153.0,54152.0,0.013]
[1725815306823,0.534299,54153.0,54152.0,0.013]
[1725815307295,0.534299,54153.0,54152.0,0.005]
[1725815307553,0.534299,54153.0,54152.0,0.009]
[1725815308016,0.534299,54153.0,54152.0,0.005]
[1725815308241,0.147732,54152.0,54151.0,0.001628]
[1725815308476,0.38567,54153.0,54152.0,0.14909323]
[1725815308477,0.00081,54153.0,54152.0,0.14909323]
[1725815308701,0.00081,54153.0,54152.0,0.15009323]
[1725815309482,0.00081,54153.0,54152.0,0.15209323]
[1725815309713,0.00081,54153.0,54152.0,0.14909323]
[1725815309962,0.00181,54153.0,54152.0,0.14909323]
[1725815310207,0.00181,54153.0,54151.0,0.001628]
[1725815310437,0.00081,54153.0,54151.0,0.001628]
[1725815310682,0.089401,54152.0,54151.0,0.001628]
[1725815311688,0.238033,54152.0,54151.0,0.001628]
[1725815312872,0.238033,54152.0,54151.0,0.005628]
[1725815313097,0.238033,54152.0,54151.0,0.001628]
[1725815313328,0.239033,54152.0,54151.0,0.002628]
[1725815313554,0.88816589,54152.0,54151.0,0.001628]
[1725815314036,0.88816589,54152.0,54151.0,0.002628]
[1725815314037,0.833961,54152.0,54151.0,0.002628]
[1725815314263,1.52941013,54152.0,54151.0,0.002628]
[1725815314506,1.3019587,54152.0,54151.0,0.002628]
[1725815314745,1.32586566,54152.0,54151.0,0.002628]
[1725815315450,1.32886566,54152.0,54151.0,0.003628]
[1725815315451,0.93536189,54152.0,54151.0,0.003628]
[1725815315681,0.42487185,54152.0,54151.0,0.001628]
[1725815315919,0.26159027,54152.0,54151.0,0.003628]
[1725815316159,0.26159027,54152.0,54151.0,0.002628]
[1725815316160,0.56250396,54152.0,54151.0,0.002628]
[1725815316432,1.38134344,54152.0,54151.0,0.003628]
[1725815316718,1.43326565,54152.0,54151.0,0.003628]
[1725815316984,0.147773,54137.0,54136.0,0.0751]
[1725815317241,0.147773,54137.0,54133.0,0.0751]
[1725815317242,0.237174,54137.0,54133.0,0.0751]
[1725815317498,0.089401,54134.0,54133.0,0.0751]
[1725815318222,0.16758908,54134.0,54133.0,0.0751]
[1725815319426,0.32237008,54134.0,54133.0,0.0761]
[1725815319670,0.31537008,54134.0,54133.0,0.0751]
[1725815319925,0.16758908,54134.0,54133.0,0.0751]
[1725815320667,0.17158908,54134.0,54133.0,0.0751]
[1725815321861,0.17258908,54134.0,54133.0,0.1403]
[1725815322104,0.16858908,54134.0,54133.0,0.1403]
[1725815322334,0.17058908,54134.0,54133.0,0.1403]
[1725815322556,0.003,54134.0,54133.0,0.1403]
[1725815322777,0.147776,54136.0,54133.0,0.1403]
[1725815322999,0.002,54134.0,54133.0,0.1403]
[1725815323230,0.005,54134.0,54133.0,0.1403]
[1725815323664,0.002,54134.0,54133.0,0.1413]
[1725815323885,0.004,54134.0,54133.0,0.1413]
[1725815324142,0.004,54134.0,54133.0,0.289084]
[1725815324605,0.004,54134.0,54133.0,0.1413]
[1725815325269,0.16758908,54135.0,54133.0,0.288082]
[1725815325715,0.004,54134.0,54133.0,0.28971]
[1725815325937,0.003,54134.0,54133.0,0.28971]
[1725815326150,0.16758908,54135.0,54134.0,0.147781]
[1725815326796,0.16858908,54135.0,54134.0,0.147781]
[1725815327022,0.16758908,54135.0,54134.0,0.147781]
[1725815327253,0.17158908,54135.0,54134.0,0.147781]
[1725815328246,0.17158908,54135.0,54134.0,0.88056623]
[1725815328247,0.004,54135.0,54134.0,0.88056623]
[1725815328486,0.004,54135.0,54134.0,0.97661505]
[1725815328701,0.147749,54146.0,54141.0,0.28942223]
[1725815328951,0.31533508,54147.0,54142.0,0.147759]
[1725815329156,0.16758908,54143.0,54142.0,0.147759]
[1725815329401,0.16758908,54143.0,54142.0,0.443278]
[1725815329624,0.23812079,54150.0,54146.0,0.1403]
[1725815329625,0.16758908,54147.0,54146.0,0.1403]
[1725815329845,0.16758908,54147.0,54146.0,0.288048]
[1725815330271,0.17558908,54147.0,54146.0,0.1403]
[1725815330495,0.17558908,54147.0,54146.0,0.288048]
[1725815330496,0.16758908,54147.0,54146.0,0.288048]
[1725815332312,0.17158908,54147.0,54146.0,0.288048]
[1725815332803,0.011,54147.0,54146.0,0.88140323]
[1725815333258,0.004,54147.0,54146.0,0.88040323]
[1725815333719,0.16758908,54151.0,54146.0,0.88040323]
[1725815333720,0.16758908,54151.0,54149.0,0.147738]
[1725815333931,0.16758908,54147.0,54146.0,0.1403]
[1725815334145,0.17458908,54147.0,54146.0,0.289048]
[1725815335078,0.17858908,54147.0,54146.0,0.289048]
[1725815335307,0.17858908,54147.0,54146.0,0.583545]
[1725815335308,0.17158908,54147.0,54146.0,0.583545]
[1725815335540,0.16758908,54147.0,54146.0,0.583545]
[1725815335767,0.17558908,54147.0,54146.0,0.583545]
[1725815336251,0.17158908,54147.0,54146.0,0.288048]
[1725815336498,0.17758908,54147.0,54146.0,0.289048]
[1725815336973,0.17358908,54147.0,54146.0,0.289048]
[1725815337193,0.16758908,54147.0,54144.0,0.147752]
[1725815337413,0.14776,54142.0,54139.0,0.0808]
[1725815337867,0.31534608,54143.0,54139.0,0.0808]
[1725815338081,0.31534608,54143.0,54139.0,0.228566]
[1725815338320,0.16758908,54143.0,54140.0,0.147764]
[1725815338751,0.16758908,54143.0,54139.0,0.0808]
[1725815338752,0.31534608,54143.0,54139.0,0.0808]
[1725815338980,0.31534608,54143.0,54139.0,0.229566]
[1725815339201,0.14776,54142.0,54139.0,0.0808]
[1725815339429,0.147762,54141.0,54137.0,0.147772]
[1725815339680,0.295516,54143.0,54137.0,0.147772]
[1725815339932,0.16758908,54140.0,54138.0,0.147769]
[1725815340141,0.16758908,54140.0,54139.0,0.001]
[1725815340399,0.16758908,54140.0,54139.0,0.148767]
[1725815340610,0.018,54143.0,54140.0,0.147763]
[1725815340860,0.165757,54143.0,54139.0,0.149767]
[1725815341772,0.165757,54143.0,54139.0,0.002]
[1725815341773,0.31535408,54140.0,54139.0,0.002]
[1725815342000,0.63788115,54140.0,54139.0,0.001]
[1725815342237,0.443335,54135.0,54134.0,0.00163]
[1725815342443,0.90738108,54135.0,54134.0,0.00163]
[1725815342653,0.61182408,54135.0,54134.0,0.00163]
[1725815343085,0.61092408,54135.0,54134.0,0.00163]
[1725815343308,0.16758908,54135.0,54134.0,0.00163]
[1725815343547,0.41241764,54140.0,54134.0,0.00163]
[1725815343548,0.007,54140.0,54138.0,0.14777]
[1725815343773,0.007,54140.0,54139.0,0.147767]
[1725815343990,0.16758908,54143.0,54139.0,0.147767]
[1725815343991,0.16758908,54143.0,54139.0,0.224667]
[1725815344208,0.16758908,54143.0,54140.0,0.147764]
[1725815344421,0.16758908,54143.0,54139.0,0.0769]
[1725815344859,0.16758908,54143.0,54139.0,0.224666]
[1725815345295,0.31534608,54143.0,54139.0,0.224666]
[1725815345719,0.31534608,54143.0,54139.0,0.0769]
[1725815346170,0.33334608,54143.0,54139.0,0.226666]
[1725815346386,0.17758908,54143.0,54140.0,0.147763]
[1725815346605,0.16758908,54143.0,54141.0,0.0639]
[1725815346817,0.17858908,54143.0,54141.0,0.0639]
[1725815347516,0.32634608,54143.0,54141.0,0.0639]
[1725815348187,0.31934608,54143.0,54141.0,0.0639]
[1725815348403,0.17158908,54143.0,54139.0,0.224667]
[1725815348618,0.32234708,54143.0,54140.0,0.001]
[1725815348840,0.32634708,54143.0,54140.0,0.001]
[1725815349051,0.31934708,54143.0,54139.0,0.224667]
[1725815349265,0.37461633,54143.0,54139.0,0.224667]
[1725815349483,0.38161633,54143.0,54141.0,0.001]
[1725815349699,0.05526925,54142.0,54141.0,0.001]
[1725815349916,0.05526925,54142.0,54139.0,0.0769]
[1725815350137,0.20302825,54142.0,54140.0,0.001]
[1725815350360,0.05526925,54141.0,54140.0,0.001]
[1725815350788,0.20302825,54142.0,54140.0,0.001]
[1725815351010,0.05526925,54142.0,54140.0,0.001]
[1725815351227,0.05526925,54141.0,54140.0,0.001]
[1725815351445,0.05526925,54141.0,54139.0,0.224666]
[1725815352112,0.05526925,54140.0,54139.0,0.226296]
[1725815352371,0.08290387,54141.0,54139.0,0.00163]
[1725815352584,0.08590387,54141.0,54139.0,0.00163]
[1725815353013,0.08290387,54140.0,54139.0,0.00163]
[1725815353759,0.443295,54140.0,54139.0,0.00163]
[1725815354212,0.66339317,54140.0,54139.0,0.00163]
[1725815355781,0.66539317,54140.0,54139.0,0.00163]
[1725815356206,0.55485467,54140.0,54139.0,0.00163]
[1725815357253,0.70102779,54140.0,54139.0,0.00263]
[1725815357671,0.69902779,54140.0,54139.0,0.00263]
[1725815357880,0.6715979,54140.0,54139.0,0.00263]
[1725815358123,0.6755979,54140.0,54139.0,0.00263]
[1725815358315,0.56485467,54140.0,54139.0,0.00263]
[1725815358530,0.55285467,54140.0,54139.0,0.00163]
[1725815358744,0.56585467,54140.0,54139.0,0.00363]
[1725815358955,0.57385467,54140.0,54139.0,0.00363]
[1725815359172,0.70402779,54140.0,54139.0,0.00263]
[1725815359395,0.69902779,54140.0,54139.0,0.00263]
[1725815359611,0.71202779,54140.0,54139.0,0.00363]
[1725815360341,0.70402779,54140.0,54139.0,0.00263]
[1725815360565,0.71202779,54140.0,54139.0,0.00363]
[1725815360785,0.69902779,54140.0,54139.0,0.00263]
[1725815360996,0.451295,54140.0,54139.0,0.00263]
[1725815361220,0.71270696,54140.0,54139.0,0.00363]
[1725815361677,0.69970696,54140.0,54139.0,0.00263]
[1725815361945,0.70470696,54140.0,54139.0,0.00263]
[1725815362158,0.71270696,54140.0,54139.0,0.00363]
[1725815363082,0.14644359,54140.0,54139.0,0.00363]
[1725815363311,0.44197359,54140.0,54139.0,0.00363]
[1725815363968,0.42897359,54140.0,54139.0,0.00263]
[1725815364195,0.44197359,54140.0,54139.0,0.00363]
[1725815364637,0.42897359,54140.0,54139.0,0.00263]
[1725815364855,0.43397359,54140.0,54139.0,0.00263]
[1725815365358,0.43397359,54140.0,54139.0,0.00363]
[1725815365359,0.95808993,54140.0,54139.0,0.00363]
[1725815365584,0.13844359,54140.0,54139.0,0.00263]
[1725815365798,0.55162247,54140.0,54139.0,0.00363]
[1725815366035,0.66242066,54140.0,54139.0,0.00363]
[1725815366248,0.65442066,54140.0,54139.0,0.00263]
[1725815366487,0.66242066,54140.0,54139.0,0.00363]
[1725815366742,0.84849219,54140.0,54139.0,0.00363]
[1725815366961,0.84930719,54140.0,54139.0,0.00363]
[1725815367187,0.66457881,54140.0,54139.0,0.00263]
[1725815367400,0.65157881,54140.0,54139.0,0.00263]
[1725815367612,0.66357881,54140.0,54139.0,0.00363]
[1725815367922,0.65557881,54140.0,54139.0,0.00263]
[1725815368389,0.65157881,54140.0,54139.0,0.00263]
[1725815368826,0.95910881,54140.0,54139.0,0.00363]
[1725815369043,0.98210881,54140.0,54139.0,0.00363]
[1725815369951,0.97010881,54140.0,54139.0,0.00263]
[1725815370167,0.65157881,54140.0,54139.0,0.00263]
[1725815370386,0.66357881,54140.0,54139.0,0.00363]
[1725815370818,0.66477057,54140.0,54139.0,0.00363]
[1725815371058,0.65677057,54140.0,54139.0,0.00263]
[1725815371276,0.35724057,54140.0,54139.0,0.00263]
[1725815371488,0.35724057,54140.0,54139.0,0.06773]
[1725815371489,0.14525859,54140.0,54139.0,0.06773]
[1725815371698,0.52388226,54140.0,54139.0,0.06773]
[1725815372133,0.44078859,54140.0,54139.0,0.06773]
[1725815372351,0.52388308,54140.0,54139.0,0.06773]
[1725815372602,0.51588308,54140.0,54139.0,0.06673]
[1725815372819,0.54541207,54140.0,54139.0,0.06673]
[1725815373039,0.55341207,54140.0,54139.0,0.06773]
[1725815373337,0.54241207,54140.0,54139.0,0.06673]
[1725815373574,0.68090494,54140.0,54139.0,0.06673]
[1725815373792,0.68090494,54140.0,54139.0,0.06773]
[1725815373793,0.69290494,54140.0,54139.0,0.06773]
[1725815374223,0.68490494,54140.0,54139.0,0.06673]
[1725815374446,0.67290494,54140.0,54139.0,0.06673]
[1725815374654,0.69390494,54140.0,54139.0,0.06773]
[1725815375351,0.68590494,54140.0,54139.0,0.06673]
[1725815375574,0.68590494,54140.0,54139.0,0.06773]
[1725815375818,0.69390494,54140.0,54139.0,0.06773]
[1725815376258,0.55541207,54140.0,54139.0,0.00363]
[1725815377660,0.25988207,54140.0,54139.0,0.00363]
[1725815377871,0.25988207,54140.0,54139.0,0.88652823]
[1725815377872,0.10491506,54140.0,54139.0,0.88652823]
[1725815378106,0.021815,54140.0,54139.0,1.18206323]
[1725815378336,0.021815,54140.0,54139.0,1.18406323]
[1725815378990,0.013815,54140.0,54139.0,1.18306323]
[1725815379207,0.013815,54140.0,54139.0,1.18806323]
[1725815380113,0.000815,54140.0,54139.0,1.18706323]
[1725815380766,0.008815,54140.0,54139.0,1.19506323]
[1725815381637,0.007815,54140.0,54139.0,1.18306323]
[1725815381863,0.000815,54140.0,54139.0,1.18706323]
[1725815382124,0.000815,54140.0,54139.0,1.18206323]
[1725815382572,0.001815,54140.0,54139.0,1.18906323]
[1725815382785,0.001815,54140.0,54139.0,1.18206323]
[1725815383180,0.001815,54140.0,54139.0,1.18606323]
[1725815384095,0.001815,54140.0,54139.0,1.19106323]